bitfinex/quotes_SOLUSD_20251120
["timestamp","ask_amount","ask_price","bid_price","bid_amount"]
[1763644937404,0.69,141.98,141.95,11.09170845]
[1763644937710,0.69,141.98,141.94,11.79170845]
[1763644938126,0.69,141.98,141.94,18.13670239]
[1763644938320,7.73331242,141.98,141.94,11.09170845]
[1763644938520,11.09170845,141.97,141.92,11.09170845]
[1763644938732,1.68,141.96,141.92,11.09170845]
[1763644938937,2.37,141.96,141.92,4.17720698]
[1763644939240,2.37,141.96,141.93,4.17720698]
[1763644940436,0.68,141.95,141.92,4.17720698]
[1763644940634,0.68,141.95,141.9,4.17720698]
[1763644940635,4.85720698,141.95,141.9,4.17720698]
[1763644940816,0.68,141.95,141.9,11.22429501]
[1763644941008,0.68,141.94,141.9,11.22429501]
[1763644941414,0.68,141.94,141.9,0.71]
[1763644941652,0.68,141.94,141.9,11.93405385]
[1763644942639,8.72432591,141.96,141.92,4.17720698]
[1763644942640,9.40433281,141.96,141.92,4.17720698]
[1763644943018,0.68,141.99,141.95,4.17720698]
[1763644943240,1.68,141.98,141.93,0.71]
[1763644943449,1.68,141.98,141.95,4.17720698]
[1763644943648,2.36,141.98,141.95,4.17720698]
[1763644944249,2.36,141.98,141.95,11.22159408]
[1763644944437,1.68,141.98,141.95,11.93159408]
[1763644944617,1.68,141.98,141.95,0.71]
[1763644945012,2.36,141.98,141.94,11.22232476]
[1763644945237,2.36,141.98,141.95,0.71]
[1763644945540,0.68,141.97,141.93,4.88720698]
[1763644946243,11.90141377,141.97,141.92,4.17720698]
[1763644946728,11.90141377,141.97,141.91,0.71]
[1763644946729,0.68,141.96,141.91,4.88720698]
[1763644946934,0.68,141.96,141.91,3.38372223]
[1763644947239,0.68,141.96,141.9,3.38372223]
[1763644947240,2.67372223,141.95,141.9,3.38372223]
[1763644947439,0.68,141.94,141.9,3.38372223]
[1763644947826,0.68,141.94,141.87,18.12096]
[1763644948029,7.04622322,141.92,141.88,9.72146978]
[1763644948228,2.67372223,141.92,141.88,7.04774755]
[1763644948545,3.35372223,141.92,141.88,7.75774755]
[1763644948952,7.84567924,141.92,141.88,7.87567924]
[1763644949188,8.84567924,141.92,141.87,7.16567924]
[1763644949446,8.84567924,141.92,141.85,7.84567925]
[1763644949447,7.86567924,141.91,141.85,7.84567925]
[1763644949948,7.86567924,141.9,141.85,7.84567925]
[1763644950126,14.91311471,141.9,141.85,14.89522901]
[1763644950454,0.7,141.9,141.86,7.84567924]
[1763644951237,1.68,141.92,141.87,0.68]
[1763644951430,0.7,141.91,141.87,7.16567924]
[1763644951636,2.38,141.92,141.88,7.84567924]
[1763644952240,0.7,141.91,141.89,7.04771301]
[1763644952440,0.7,141.91,141.88,14.21378767]
[1763644952657,7.86567924,141.91,141.87,7.04869762]
[1763644952844,0.7,141.91,141.87,14.89437686]
[1763644953572,0.7,141.91,141.88,7.16567924]
[1763644953760,0.7,141.91,141.87,32.51614326]
[1763644954265,0.7,141.91,141.87,25.35046402]
[1763644954465,0.7,141.91,141.87,32.51614326]
[1763644957974,0.7,141.91,141.87,14.89437686]
[1763644959191,1.68,141.92,141.88,7.84567924]
[1763644959374,1.68,141.92,141.89,7.16567924]
[1763644959543,1.68,141.92,141.89,7.84567924]
[1763644959747,0.7,141.95,141.9,7.84567924]
[1763644959967,2.38,141.95,141.9,7.84567924]
[1763644960164,9.54567924,141.95,141.91,0.68]
[1763644960489,2.38,141.95,141.91,7.84567924]
[1763644960661,2.38,141.95,141.92,7.04622322]
[1763644960971,0.7,141.95,141.92,7.04622322]
[1763644961472,0.7,141.95,141.92,7.72622322]
[1763644961650,8.84567924,141.96,141.92,7.72622322]
[1763644961850,20.50096,141.96,141.92,7.72622322]
[1763644962077,27.66663924,141.96,141.92,7.72622322]
[1763644962576,20.50096,141.96,141.92,14.89190246]
[1763644963784,0.67247327,141.95,141.92,7.04622322]
[1763644963961,0.67247327,141.95,141.91,14.89233589]
[1763644964463,0.67247327,141.95,141.92,0.68]
[1763644965051,0.67247327,141.95,141.92,7.04600674]
[1763644965756,0.67247327,141.95,141.77,35.68909833]
[1763644965757,9.39747176,141.95,141.86,23.51979548]
[1763644965963,7.16567924,141.93,141.89,7.84567924]
[1763644966376,7.86567924,141.93,141.9,0.68]
[1763644966578,0.7,141.93,141.9,0.68]
[1763644966964,0.7,141.93,141.89,7.16567924]
[1763644967162,0.7,141.93,141.9,7.04721634]
[1763644968179,0.7,141.93,141.9,7.72721634]
[1763644970981,3.37488446,141.93,141.9,7.04721634]
[1763644971565,3.37488446,141.93,141.89,7.72759034]
[1763644971885,0.66,141.92,141.89,7.04759034]
[1763644972556,0.66,141.92,141.89,7.72759034]
[1763644972785,3.33488446,141.92,141.87,2.67488446]
[1763644972987,0.66,141.91,141.88,7.04806248]
[1763644973579,0.66,141.91,141.88,7.72806248]
[1763644974081,3.33488446,141.91,141.87,7.04854115]
[1763644974580,3.33488446,141.9,141.87,7.04854115]
[1763644974880,2.67488446,141.9,141.87,7.72854115]
[1763644975079,3.33488446,141.9,141.87,7.72854115]
[1763644975877,3.33488446,141.9,141.86,24.67175007]
[1763644976088,3.33488446,141.9,141.86,25.35175007]
[1763644976268,3.33488446,141.9,141.85,2.67488447]
[1763644976269,2.67488446,141.88,141.85,1e-08]
[1763644976461,0.66,141.89,141.85,1e-08]
[1763644976660,0.66,141.88,141.85,1e-08]
[1763644976856,3.33488446,141.88,141.85,1e-08]
[1763644977183,0.66,141.88,141.85,7.72967664]
[1763644977561,0.66,141.88,141.85,0.68000001]
[1763644978180,8.7272202,141.9,141.85,10.40447321]
[1763644978358,1.68,141.9,141.86,2.67488446]
[1763644978560,1.68,141.9,141.87,0.68]
[1763644978879,2.34,141.9,141.87,0.68]
[1763644979274,0.66,141.89,141.85,7.72958875]
[1763644979476,0.66,141.89,141.85,3.35488447]
[1763644979965,0.66,141.89,141.85,10.4045077]
[1763644980364,0.66,141.89,141.86,0.68]
[1763644980565,0.66,141.89,141.86,3.35488446]
[1763644980783,1.68,141.9,141.87,2.67488446]
[1763644980982,1.68,141.9,141.87,3.35488446]
[1763644981699,2.34,141.9,141.86,10.40364873]
[1763644982086,2.34,141.9,141.86,9.72364873]
[1763644982274,2.34,141.9,141.86,10.40364873]
[1763644982675,2.34,141.9,141.87,7.72870363]
[1763644983296,2.34,141.9,141.87,0.68]
[1763644983480,2.34,141.9,141.87,7.72861506]
[1763644984196,1.68,141.9,141.88,3.35488446]
[1763644984375,1.68,141.9,141.89,0.68]
[1763644984973,1.68,141.9,141.89,7.72771301]
[1763644985169,0.66,141.93,141.89,10.40259747]
[1763644985375,0.66,141.95,141.91,2.67488446]
[1763644985992,10.37964193,141.95,141.91,0.68]
[1763644986296,0.66,141.94,141.9,3.35488446]
[1763644987097,0.66,141.94,141.9,10.40165727]
[1763644987994,0.66,141.94,141.91,0.68]
[1763644988196,2.67488446,141.95,141.91,0.68]
[1763644988493,21.45584446,141.95,141.91,0.68]
[1763644988684,12.46371215,141.98,141.93,2.67488446]
[1763644988990,32.92467215,141.98,141.93,2.67488446]
[1763644989222,0.66,141.97,141.94,0.68]
[1763644989374,2.34,141.98,141.94,3.35488446]
[1763644989574,9.78882769,142.01,141.95,2.67488446]
[1763644989575,5.01488446,142.0,141.95,2.67488446]
[1763644989779,5.01488446,142.0,141.95,3.35488446]
[1763644989979,0.66,141.99,141.95,3.35488446]
[1763644990799,0.66,141.99,141.96,7.04423781]
[1763644991176,1.68,142.0,141.96,10.39912227]
[1763644991374,27.90978769,142.01,141.91,5.89795227]
[1763644991598,0.66,142.0,141.95,0.68]
[1763644991905,3.33488446,142.0,141.95,3.35488446]
[1763644992306,0.66,141.99,141.95,3.35488446]
[1763644992782,0.66,141.99,141.95,10.39934479]
[1763644993296,0.66,141.99,141.95,9.71934479]
[1763644993501,32.92467215,142.01,141.96,3.35488446]
[1763644993693,39.96644896,142.01,141.96,3.35488446]
[1763644994018,2.67488446,141.99,141.94,3.35488446]
[1763644994186,3.33488446,142.0,141.95,2.67488446]
[1763644994378,0.66,141.99,141.95,2.67488446]
[1763644994579,0.66,141.99,141.95,3.35488446]
[1763644994985,0.66,141.99,141.95,10.3991449]
[1763644995282,0.66,141.99,141.95,7.72426044]
[1763644995483,0.66,141.99,141.95,10.3991449]
[1763644996200,0.66,141.99,141.96,0.68]
[1763644996817,0.66,141.99,141.96,10.3989886]
[1763644998284,0.66,141.99,141.95,10.39942588]
[1763644999414,0.66,141.99,141.96,0.68]
[1763644999602,20.46096,142.01,141.96,3.35488446]
[1763644999788,0.66,141.99,141.96,3.35488446]
[1763645000914,0.66,141.99,141.97,7.04374163]
[1763645001098,23.17584446,142.01,141.97,10.37862609]
[1763645001300,22.47584446,142.01,141.97,10.37862609]
[1763645001610,0.7,142.0,141.97,10.37862609]
[1763645001913,0.7,142.0,141.92,27.40386902]
[1763645002098,3.37488446,142.0,141.94,2.67488446]
[1763645002292,2.67488446,141.99,141.94,2.67488446]
[1763645002515,3.37488446,141.99,141.93,0.66]
[1763645002683,0.7,141.98,141.94,2.67488446]
[1763645002886,9.71862609,141.97,141.9,7.70706856]
[1763645003090,2.67488446,141.95,141.9,7.70721571]
[1763645003308,2.67488446,141.95,141.9,2.67488446]
[1763645003614,2.67488446,141.93,141.88,9.7229913]
[1763645003816,3.37488446,141.94,141.89,2.67488446]
[1763645004012,0.7,141.93,141.89,2.67488446]
[1763645004310,0.7,141.93,141.86,7.04909588]
[1763645004311,21.49584446,141.93,141.86,7.04909588]
[1763645004490,2.67488446,141.92,141.87,3.33488446]
[1763645004688,3.37488446,141.92,141.87,3.33488446]
[1763645004879,0.7,141.92,141.88,10.38293989]
[1763645005492,10.42113735,141.92,141.87,9.72325456]
[1763645005691,10.42113735,141.92,141.87,10.38325456]
[1763645005891,0.7,141.91,141.87,10.38325456]
[1763645006494,0.7,141.91,141.88,0.66]
[1763645007011,0.7,141.91,141.87,3.33488446]
[1763645007316,0.7,141.91,141.87,10.38350252]
[1763645009008,0.7,141.93,141.89,4.1799253]
[1763645009422,11.92571405,141.93,141.88,4.1799253]
[1763645009602,4.1799253,141.92,141.87,29.53030976]
[1763645009782,4.8799253,141.92,141.87,29.53030976]
[1763645009986,4.8799253,141.92,141.88,0.68]
[1763645010203,4.8799253,141.91,141.86,7.72901772]
[1763645010391,4.8799253,141.91,141.86,11.22894302]
[1763645010604,0.7,141.9,141.86,11.22894302]
[1763645010911,0.7,141.9,141.87,0.68]
[1763645011108,11.92667624,141.91,141.87,0.68]
[1763645011716,0.7,141.9,141.87,0.68]
[1763645011916,4.8799253,141.91,141.87,0.68]
[1763645012093,7.04643722,141.92,141.87,0.68]
[1763645012094,4.8799253,141.92,141.87,4.8599253]
[1763645012289,0.7,141.91,141.88,7.04820975]
[1763645012494,0.7,141.91,141.82,5.89795227]
[1763645012495,9.78882769,141.89,141.82,5.89795227]
[1763645012816,27.90978769,141.79,141.78,0.1]
[1763645013025,34.46971299,141.79,141.75,0.1]
[1763645013225,4.1799253,141.76,141.75,0.1]
[1763645013606,23.0008853,141.76,141.75,0.1]
[1763645014426,30.05506137,141.76,141.75,0.1]
[1763645015038,11.46882769,141.79,141.75,0.1]
[1763645015205,13.94531663,141.76,141.75,0.1]
[1763645015402,18.12096,141.72,141.7,0.1]
[1763645015653,18.12096,141.73,141.7,0.1]
[1763645015943,11.11936023,141.71,141.7,0.1]
[1763645016104,0.7,141.72,141.7,0.1]
[1763645016303,18.17602525,141.71,141.7,0.1]
[1763645016748,28.66485294,141.71,141.7,0.1]
[1763645017843,18.82096,141.71,141.7,0.1]
[1763645018006,29.24032023,141.71,141.7,0.1]
[1763645018941,11.11936023,141.71,141.7,0.78]
[1763645019254,11.11936023,141.72,141.7,0.78]
[1763645019613,11.11936023,141.71,141.7,0.1]
[1763645020013,11.81936023,141.71,141.7,0.1]
[1763645020213,39.72914792,141.71,141.7,0.1]
[1763645020608,21.60818792,141.71,141.7,0.1]
[1763645020833,21.60818792,141.71,141.62,0.68]
[1763645020834,11.11936023,141.65,141.62,0.68]
[1763645021031,11.11936023,141.64,141.62,0.68]
[1763645021207,37.44665855,141.68,141.62,0.68]
[1763645021208,7.05865744,141.67,141.62,0.68]
[1763645021403,11.11936023,141.64,141.62,0.68]
[1763645021608,7.75865744,141.67,141.62,0.68]
[1763645021845,11.11936023,141.64,141.62,0.68]
[1763645022252,7.75865744,141.67,141.62,0.68]
[1763645022253,11.11936023,141.65,141.62,0.68]
[1763645022625,11.11936023,141.67,141.62,18.86048033]
[1763645022828,19.80096,141.68,141.62,18.86048033]
[1763645023151,29.24032023,141.68,141.63,11.79936023]
[1763645023317,18.12096,141.68,141.64,11.79936023]
[1763645023518,1.68,141.69,141.65,11.11936023]
[1763645023829,1.68,141.69,141.66,0.68]
[1763645024029,11.11936023,141.68,141.66,0.68]
[1763645024617,8.73766259,141.69,141.63,0.68]
[1763645024829,11.11936023,141.65,141.61,0.68]
[1763645025032,29.24032023,141.62,141.55,0.68]
[1763645025229,29.24032023,141.56,141.5,0.68]
[1763645025432,11.11936023,141.55,141.5,0.68]
[1763645025643,19.82096,141.56,141.5,0.68]
[1763645025839,11.11936023,141.55,141.5,0.18]
[1763645026027,11.11936023,141.55,141.5,11.11936023]
[1763645026222,11.11936023,141.55,141.45,25.19059591]
[1763645026223,11.11936023,141.55,141.45,78.21286525]
[1763645026531,11.11936023,141.54,141.48,11.11936023]
[1763645027321,11.11936023,141.55,141.46,9.78882769]
[1763645027527,30.94032023,141.56,141.5,11.11936023]
[1763645027737,29.24032023,141.56,141.5,11.11936023]
[1763645027940,29.24032023,141.56,141.51,0.68]
[1763645028240,18.12096,141.56,141.51,11.79936023]
[1763645028544,18.12096,141.56,141.53,11.11936023]
[1763645028719,18.12096,141.56,141.54,0.68]
[1763645029618,36.30449308,141.56,141.52,0.68]
[1763645029818,18.12096,141.56,141.53,0.68]
[1763645031334,1.99999999,141.71,141.55,11.11936023]
[1763645031645,50.0,141.75,141.53,25.86646984]
[1763645031646,11.11936023,141.65,141.54,9.78882769]
[1763645031810,11.11936023,141.67,141.54,31.67998475]
[1763645031811,11.11936023,141.62,141.54,31.67998475]
[1763645032018,11.11936023,141.62,141.57,11.11936023]
[1763645032514,7.06065099,141.63,141.58,0.68]
[1763645032713,11.11936023,141.62,141.58,0.68]
[1763645033958,11.11936023,141.63,141.58,11.79936023]
[1763645034120,11.11936023,141.63,141.58,18.86249171]
[1763645034466,29.81454525,141.68,141.6,11.11936023]
[1763645034623,18.17892683,141.66,141.61,0.68]
[1763645034945,11.11936023,141.66,141.61,0.68]
[1763645035242,29.24032023,141.65,141.61,0.68]
[1763645035450,18.12096,141.65,141.61,0.68]
[1763645035618,29.24032023,141.65,141.61,0.68]
[1763645036025,29.24032023,141.65,141.59,7.06255799]
[1763645036026,11.11936023,141.63,141.59,0.68]
[1763645036223,11.11936023,141.62,141.59,0.68]
[1763645036630,11.11936023,141.6,141.56,0.68]
[1763645036954,18.18100841,141.61,141.57,0.68]
[1763645037325,11.11936023,141.6,141.54,16.85379644]
[1763645037648,11.11936023,141.59,141.55,0.68]
[1763645038057,29.24032023,141.58,141.55,0.68]
[1763645038526,7.06364342,141.57,141.51,9.78882769]
[1763645038719,18.18300365,141.57,141.52,11.11936023]
[1763645038920,18.18300365,141.57,141.52,11.79936023]
[1763645039149,18.18300365,141.57,141.53,0.68]
[1763645039348,11.11936023,141.56,141.52,0.68]
[1763645039730,11.11936023,141.55,141.48,16.85649161]
[1763645039942,18.12096,141.55,141.49,11.79936023]
[1763645040256,18.12096,141.55,141.5,11.11936023]
[1763645040460,18.12096,141.55,141.51,0.68]
[1763645040976,29.24032023,141.55,141.51,0.68]
[1763645041261,18.12096,141.55,141.49,11.11936023]
[1763645041442,36.30510579,141.55,141.51,0.68]
[1763645042062,18.12096,141.55,141.51,11.79936023]
[1763645042357,11.11936023,141.57,141.52,0.68]
[1763645042652,11.11936023,141.56,141.52,0.68]
[1763645042967,11.11936023,141.55,141.49,18.86695337]
[1763645043138,11.11936023,141.55,141.5,0.68]
[1763645043552,18.18363639,141.56,141.5,11.79936023]
[1763645043855,11.11936023,141.55,141.5,11.79936023]
[1763645044035,11.11936023,141.55,141.5,0.68]
[1763645044235,11.11936023,141.55,141.51,0.68]
[1763645044840,11.11936023,141.56,141.51,18.86591095]
[1763645045163,11.11936023,141.56,141.52,0.68]
[1763645045340,18.12096,141.56,141.52,0.68]
[1763645045544,18.12096,141.55,141.52,0.68]
[1763645046258,9.44326241,141.58,141.52,0.68]
[1763645046451,11.11936023,141.57,141.52,11.79936023]
[1763645046859,18.18318406,141.57,141.53,0.68]
[1763645047036,11.11936023,141.56,141.52,0.68]
[1763645047760,0.68,141.56,141.52,0.68]
[1763645048070,19.82096,141.58,141.52,11.79936023]
[1763645048366,30.94032023,141.58,141.52,11.79936023]
[1763645048544,30.94032023,141.58,141.53,0.68]
[1763645048862,11.11936023,141.59,141.54,7.06514059]
[1763645049050,18.18154091,141.6,141.54,18.18450082]
[1763645049360,36.30250091,141.6,141.55,0.68]
[1763645049861,18.80096,141.6,141.55,0.68]
[1763645050235,36.30247751,141.6,141.55,0.68]
[1763645050567,11.11936023,141.58,141.53,11.79936023]
[1763645050951,18.8627498,141.58,141.54,0.68]
[1763645051152,11.79936023,141.57,141.52,11.79936023]
[1763645051349,7.06129273,141.62,141.53,0.68]
[1763645051664,11.11936023,141.58,141.53,0.68]
[1763645052170,11.79936023,141.58,141.53,0.68]
[1763645052348,0.68,141.58,141.53,0.68]
[1763645052757,0.68,141.58,141.54,7.06514059]
[1763645052956,7.06304026,141.59,141.54,7.06514059]
[1763645053159,0.68,141.58,141.54,7.74514059]
[1763645054081,18.12096,141.61,141.55,11.79936023]
[1763645054445,25.86262503,141.61,141.56,0.68]
[1763645054951,25.86262503,141.61,141.56,7.74411482]
[1763645055152,0.68,141.6,141.56,7.74411482]
[1763645055468,0.68,141.6,141.56,0.68]
[1763645056061,0.68,141.6,141.54,7.06502631]
[1763645056262,11.79936023,141.6,141.54,7.74502631]
[1763645056474,0.68,141.6,141.55,0.68]
[1763645056976,36.30198526,141.61,141.56,7.06414241]
[1763645057177,0.68,141.6,141.55,0.68]
[1763645057348,11.11936023,141.59,141.53,0.68]
[1763645057677,11.11936023,141.58,141.53,0.68]
[1763645057854,18.12096,141.59,141.53,0.68]
[1763645057855,29.92032023,141.59,141.53,0.68]
[1763645058558,25.9262047,141.62,141.54,11.11936023]
[1763645058765,13.49936023,141.61,141.54,24.72799208]
[1763645058974,20.56120365,141.61,141.55,0.68]
[1763645059175,11.11936023,141.6,141.55,11.79936023]
[1763645059495,11.11936023,141.6,141.55,11.11936023]
[1763645059783,11.79936023,141.59,141.55,0.68]
[1763645060148,11.11936023,141.59,141.55,0.68]
[1763645060793,11.11936023,141.6,141.56,7.06414241]
[1763645061083,11.11936023,141.61,141.56,7.06414241]
[1763645061279,18.12096,141.62,141.58,11.11936023]
[1763645061594,11.11936023,141.64,141.59,11.11936023]
[1763645061780,11.11936023,141.64,141.57,0.72]
[1763645061781,11.11936023,141.64,141.58,11.11936023]
[1763645062100,11.11936023,141.63,141.58,11.11936023]
[1763645062282,20.54096,141.64,141.59,0.72]
[1763645062478,11.11936023,141.63,141.59,0.72]
[1763645062782,20.54096,141.64,141.6,7.06214689]
[1763645063082,18.12096,141.63,141.6,7.06214689]
[1763645063265,18.12096,141.63,141.6,7.78214689]
[1763645063579,7.77885833,141.67,141.61,0.72]
[1763645063883,12.81936023,141.67,141.62,11.11936023]
[1763645064287,19.87757238,141.68,141.63,0.72]
[1763645064577,11.83936023,141.66,141.62,0.72]
[1763645064971,18.1785406,141.66,141.62,0.72]
[1763645065171,11.11936023,141.63,141.59,0.72]
[1763645065553,11.83936023,141.63,141.59,7.7824604]
[1763645065862,11.11936023,141.61,141.56,18.37989003]
[1763645066064,11.11936023,141.61,141.56,29.49925026]
[1763645066365,11.11936023,141.61,141.57,0.72]
[1763645066900,11.11936023,141.59,141.55,0.72]
[1763645067367,11.83936023,141.59,141.55,0.72]
[1763645067881,11.11936023,141.59,141.55,0.72]
[1763645068453,18.12096,141.59,141.55,0.72]
[1763645068685,18.12096,141.59,141.56,7.06414241]
[1763645068857,11.11936023,141.61,141.56,7.06414241]
[1763645069061,11.11936023,141.62,141.57,0.68]
[1763645069305,11.11936023,141.62,141.57,11.79936023]
[1763645069482,11.11936023,141.62,141.58,0.68]
[1763645070063,11.83936023,141.62,141.58,0.68]
[1763645070455,11.11936023,141.6,141.56,7.06414241]
[1763645070881,7.11858949,141.6,141.56,7.74414241]
[1763645071189,25.90319877,141.6,141.56,7.74414241]
[1763645071363,25.18319877,141.6,141.55,7.06455065]
[1763645071561,7.11858949,141.59,141.55,7.06455065]
[1763645071976,7.11858949,141.58,141.55,7.06455065]
[1763645072288,0.72,141.58,141.55,7.06455065]
[1763645072484,0.72,141.58,141.52,35.78582551]
[1763645072485,0.72,141.57,141.52,6.39858949]
[1763645072681,7.11858949,141.57,141.52,7.07858949]
[1763645072883,7.11858949,141.57,141.53,7.74563979]
[1763645073266,0.72,141.57,141.53,14.14422928]
[1763645073775,7.11858949,141.57,141.53,7.74563979]
[1763645075493,18.12096,141.6,141.55,6.39858949]
[1763645075674,6.39858949,141.62,141.57,6.39858949]
[1763645075993,7.11858949,141.62,141.57,6.39858949]
[1763645076287,8.81858949,141.64,141.59,6.39858949]
[1763645076768,7.11858949,141.63,141.58,7.07858949]
[1763645076962,14.1792496,141.63,141.59,7.06264566]
[1763645077182,0.72,141.62,141.59,7.06264566]
[1763645077990,7.11858949,141.62,141.59,7.06264566]
[1763645078691,6.39858949,141.61,141.58,0.68]
[1763645078869,7.11858949,141.61,141.57,7.06324911]
[1763645079068,7.11858949,141.61,141.57,7.74324911]
[1763645079476,0.72,141.61,141.57,14.1418386]
[1763645079679,6.39858949,141.62,141.58,0.68]
[1763645079878,7.11858949,141.62,141.58,0.68]
[1763645080085,7.11858949,141.62,141.58,7.07858949]
[1763645080962,7.11858949,141.62,141.58,7.74306869]
[1763645081184,6.39858949,141.61,141.58,7.74306869]
[1763645081401,7.11858949,141.62,141.58,7.74306869]
[1763645081577,14.17974666,141.62,141.58,7.74306869]
[1763645082510,6.39858949,141.62,141.58,7.06306869]
[1763645082719,0.72,141.61,141.58,7.06306869]
[1763645083004,7.11858949,141.62,141.59,0.68]
[1763645083206,7.11858949,141.62,141.58,14.14165818]
[1763645083576,7.11858949,141.62,141.58,7.74306869]
[1763645083779,6.39858949,141.63,141.59,7.07858949]
[1763645084323,0.72,141.68,141.62,6.39858949]
[1763645085600,7.11858949,141.66,141.62,7.74093099]
[1763645085920,6.39858949,141.65,141.61,7.06144664]
[1763645086081,7.11858949,141.65,141.61,7.06144664]
[1763645086276,7.11858949,141.64,141.6,7.06193258]
[1763645086486,7.11858949,141.63,141.6,7.06193258]
[1763645086694,0.72,141.63,141.6,7.06193258]
[1763645087293,0.72,141.63,141.58,24.73577864]
[1763645087294,0.72,141.63,141.59,24.71925982]
[1763645087496,0.72,141.63,141.58,13.46157631]
[1763645087497,6.39858949,141.62,141.58,13.46157631]
[1763645087678,6.39858949,141.62,141.58,14.14157631]
[1763645087998,7.11858949,141.62,141.58,14.14157631]
[1763645089007,0.72,141.62,141.58,7.74298682]
[1763645089203,7.11858949,141.62,141.58,7.74298682]
[1763645089990,1.7,141.63,141.59,7.07858949]
[1763645090198,7.05974474,141.65,141.6,7.09858949]
[1763645090397,6.39858949,141.64,141.6,7.09858949]
[1763645090712,7.05858949,141.64,141.6,0.7]
[1763645090890,7.05858949,141.63,141.58,31.81943758]
[1763645091309,7.05858949,141.63,141.6,7.06214689]
[1763645091609,25.18070474,141.65,141.6,7.06214689]
[1763645091610,7.05858949,141.64,141.6,7.06214689]
[1763645091988,7.05858949,141.64,141.6,7.76214689]
[1763645092295,0.66,141.63,141.6,7.76214689]
[1763645092487,25.17954949,141.65,141.61,0.7]
[1763645092687,6.39858949,141.66,141.62,6.39858949]
[1763645092884,6.39858949,141.66,141.62,7.09858949]
[1763645093086,7.05858949,141.66,141.62,7.09858949]
[1763645093310,7.05858949,141.66,141.63,7.7604607]
[1763645093825,7.05858949,141.66,141.62,7.06104438]
[1763645093989,7.05858949,141.66,141.62,7.76104438]
[1763645094188,7.05858949,141.65,141.61,6.39858949]
[1763645094402,7.05858949,141.65,141.61,7.09858949]
[1763645094612,7.05858949,141.65,141.61,6.39858949]
[1763645094817,7.05858949,141.65,141.62,0.7]
[1763645095192,7.05858949,141.65,141.61,6.39858949]
[1763645095387,7.05858949,141.65,141.61,7.09858949]
[1763645095809,6.39858949,141.62,141.55,6.63418325]
[1763645096007,6.39858949,141.62,141.53,7.86393637]
[1763645096008,6.39858949,141.59,141.56,0.7]
[1763645096218,6.39858949,141.6,141.56,0.7]
[1763645096588,7.05858949,141.6,141.56,0.7]
[1763645096816,7.05858949,141.6,141.56,7.09858949]
[1763645097312,6.39858949,141.6,141.57,7.06364342]
[1763645097617,49.1157323,141.68,141.59,6.39858949]
[1763645097618,0.66,141.66,141.59,6.39858949]
[1763645097787,0.66,141.66,141.6,6.39858949]
[1763645097993,6.39858949,141.65,141.61,6.39858949]
[1763645098201,18.12096,141.64,141.61,7.09858949]
[1763645099095,18.12096,141.64,141.61,7.76151134]
[1763645099586,25.17954949,141.64,141.61,7.06151134]
[1763645099792,25.17954949,141.64,141.57,18.35899051]
[1763645099793,6.39858949,141.62,141.57,18.35899051]
[1763645100007,6.39858949,141.62,141.57,24.75758]
[1763645100319,18.12096,141.64,141.58,14.16162872]
[1763645100492,18.12096,141.64,141.6,6.39858949]
[1763645100687,18.12096,141.64,141.61,0.7]
[1763645100888,18.12096,141.64,141.61,14.1602056]
[1763645102793,10.44882769,141.68,141.62,0.7]
[1763645102991,15.81683921,141.68,141.63,13.45924048]
[1763645103209,25.83828933,141.7,141.64,0.7]
[1763645103408,5.89937649,141.73,141.66,6.39858949]
[1763645103609,6.39858949,141.7,141.65,6.39858949]
[1763645103811,9.41648538,141.72,141.65,6.39858949]
[1763645104120,18.12096,141.69,141.65,7.09858949]
[1763645104623,0.66,141.68,141.62,7.76108556]
[1763645104824,0.66,141.68,141.63,6.39858949]
[1763645105020,7.05858949,141.68,141.63,6.39858949]
[1763645105223,14.11696055,141.68,141.63,14.15906529]
[1763645105820,6.39858949,141.64,141.58,6.63418325]
[1763645105997,6.39858949,141.62,141.58,7.76309228]
[1763645106194,6.39858949,141.65,141.6,6.39858949]
[1763645106398,25.17954949,141.65,141.61,0.7]